Workbook

Sheet Dépenses
B1: Budget d’événement pour [Nom de l’événement] | H1: DÉPENSES
B3: TOTAL DES DÉPENSES | G3: Estimé | H3: Réel
G4: =SUM(C11,C19,C25,C32,G11,G19,G24) -> 882.00 € | H4: =SUM(D11,D19,D25,D32,H11,H19,H24) -> 333.00 €
B6: Site | C6: Estimé | D6: Réel | F6: Rafraîchissements | G6: Estimé | H6: Réel
B7: Location de salle | C7: 500.00 € | F7: Repas
B8: Personnel du site | F8: Boissons | G8: 20.00 €
B9: Matériel | F9: Linge de table | H9: 20.00 €
B10: Tables et chaises | F10: Personnel et pourboires
B11: Total | C11: =SUBTOTAL(109,Tableau1[Estimé]) -> 500.00 € | D11: =SUBTOTAL(109,Tableau1[Réel]) -> 0.00 € | F11: Total | G11: =SUBTOTAL(109,Tableau3[Estimé]) -> 20.00 € | H11: =SUBTOTAL(109,Tableau3[Réel]) -> 20.00 €
B13: Décorations | C13: Estimé | D13: Réel | F13: Programme | G13: Estimé | H13: Réel
B14: Fleurs | C14: 200.00 € | D14: 300.00 € | F14: Intervenants
B15: Bougies | F15: Présentateurs | G15: 30.00 €
B16: Éclairage | F16: Déplacements
B17: Ballons | F17: Hôtel
B18: Fournitures papier | F18: Autres
B19: Total | C19: =SUBTOTAL(109,Tableau4[Estimé]) -> 200.00 € | D19: =SUBTOTAL(109,Tableau4[Réel]) -> 300.00 € | F19: Total | G19: =SUBTOTAL(109,Tableau5[Estimé]) -> 30.00 € | H19: =SUBTOTAL(109,Tableau5[Réel]) -> 0.00 €
B21: Publicité | C21: Estimé | D21: Réel | F21: Prix | G21: Estimé | H21: Réel
B22: Travail graphique | F22: Rubans/Plaques/Coupes
B23: Photocopie/Impression | C23: 20.00 € | F23: Cadeaux | G23: 100.00 €
B24: Affranchissement | F24: Total | G24: =SUBTOTAL(109,Tableau7[Estimé]) -> 100.00 € | H24: =SUBTOTAL(109,Tableau7[Réel]) -> 0.00 €
B25: Total | C25: =SUBTOTAL(109,Tableau6[Estimé]) -> 20.00 € | D25: =SUBTOTAL(109,Tableau6[Réel]) -> 0.00 €
B27: Divers | C27: Estimé | D27: Réel
B28: Téléphone | D28: 13.00 €
B29: Transport | C29: 12.00 €
B30: Papeterie
B31: Télécopie
B32: Total | C32: =SUBTOTAL(109,Tableau8[Estimé]) -> 12.00 € | D32: =SUBTOTAL(109,Tableau8[Réel]) -> 13.00 €

Sheet Recettes
B1: Budget d’événement pour [Nom de l’événement] | G1: REVENUS
B3: TOTAL DES REVENUS | F3: Estimé | G3: Réels
F4: =SUM(F11, F18, F25, F33) -> 1,936.00 € | G4: =SUM(G11,G18,G25, G33) -> 1,831.00 €
B6: ENTRÉES
B7: Nombre estimé | C7: Nombre réel | D7: Type | E7: Prix | F7: Revenus estimés | G7: Revenus réels
B8: 300 | C8: 278 | D8: Adultes | E8: 5.00 € | F8: =B8*E8 -> 1,500.00 € | G8: =C8*E8 -> 1,390.00 €
B9: 197 | C9: 195 | D9: Enfants | E9: 2.00 € | F9: =B9*E9 -> 394.00 € | G9: =C9*E9 -> 390.00 €
B10: 42 | C10: 51 | D10: Autres | E10: 1.00 € | F10: =B10*E10 -> 42.00 € | G10: =C10*E10 -> 51.00 €
B11: Total | F11: =SUBTOTAL(109,Tableau9[Revenus estimés]) -> 1,936.00 € | G11: =SUBTOTAL(109,Tableau9[Revenus réels]) -> 1,831.00 €
B13: PUBLICITÉS DANS LE PROGRAMME
B14: Nombre estimé | C14: Nombre réel | D14: Type | E14: Prix | F14: Revenus estimés | G14: Revenus réels
B15: 12 | D15: Couverture | F15: =B15*E15 -> 0.00 € | G15: =C15*E15 -> 0.00 €
C16: 158 | D16: Demi-page | F16: =B16*E16 -> 0.00 € | G16: =C16*E16 -> 0.00 €
B17: 4 | D17: Quart de page | F17: =B17*E17 -> 0.00 € | G17: =C17*E17 -> 0.00 €
B18: Total | F18: =SUBTOTAL(109,Tableau10[Revenus estimés]) -> 0.00 € | G18: =SUBTOTAL(109,Tableau10[Revenus réels]) -> 0.00 €
B20: EXPOSANTS/FOURNISSEURS
B21: Nombre estimé | C21: Nombre réel | D21: Type | E21: Prix | F21: Revenus estimés | G21: Revenus réels
B22: 23 | D22: Grands stands | F22: =B22*E22 -> 0.00 € | G22: =C22*E22 -> 0.00 €
B23: 354 | D23: Stands moyens | F23: =B23*E23 -> 0.00 € | G23: =C23*E23 -> 0.00 €
B24: 56 | D24: Petits stands | F24: =B24*E24 -> 0.00 € | G24: =C24*E24 -> 0.00 €
B25: Total | F25: =SUBTOTAL(109,Tableau11[Revenus estimés]) -> 0.00 € | G25: =SUBTOTAL(109,Tableau11[Revenus réels]) -> 0.00 €
B27: VENTE D’ARTICLES
B28: Nombre estimé | C28: Nombre réel | D28: Type | E28: Prix | F28: Revenus estimés | G28: Revenus réels
D29: Articles | F29: =B29*E29 -> 0.00 € | G29: =C29*E29 -> 0.00 €
B30: 123 | D30: Articles | F30: =B30*E30 -> 0.00 € | G30: =C30*E30 -> 0.00 €
D31: Articles | F31: =B31*E31 -> 0.00 € | G31: =C31*E31 -> 0.00 €
B32: 13 | D32: Articles | F32: =B32*E32 -> 0.00 € | G32: =C32*E32 -> 0.00 €
B33: Total | F33: =SUBTOTAL(109,Tableau12[Revenus estimés]) -> 0.00 € | G33: =SUBTOTAL(109,Tableau12[Revenus réels]) -> 0.00 €

Sheet Récapitulatif Résultat
B1: Budget d’événement pour [Nom de l’événement] | G1: BÉNÉFICES
G2: du compte de résultat
C5: Estimé | D5: Réel
B6: Total des recettes | C6: =Recettes!F4 -> 1,936.00 € | D6: =Recettes!G4 -> 1,831.00 €
B7: Total des dépenses | C7: =Dépenses!G4 -> 882.00 € | D7: =Dépenses!H4 -> 333.00 €
B9: Total des profits (ou pertes) | C9: =C6-C7 -> 1,054.00 € | D9: =D6-D7 -> 1,498.00 €
